[Event "26th Womens ECCC 2022"]
[Site "Mayrhofen"]
[Date "2022.10.08"]
[Round "6.32"]
[White "Peglau, Sarah"]
[Black "Schebacher, Solene"]
[Result "1-0"]
[ECO "A35"]
[WhiteElo "1794"]
[BlackElo "1866"]
[Annotator "NA RC COMBH"]
[PlyCount "51"]
[EventDate "2022.10.03"]
[EventType "team-tourn"]
[EventCountry "AUT"]
[SourceTitle "playchess.com"]
[Source "ChessBase"]
[SourceQuality "1"]
[TimeControl "40/5400+30:1800+30"]

1. Nf3 {[%emt 0:00:03]} Nf6 {[%emt 0:00:40]} 2. c4 {[%emt 0:00:07]} c5 {[%emt 0:01:16]} 3. Nc3 {[%emt 0:00:07]} Nc6 {[%emt 0:03:13]} 4. e3 {[%emt 0:00:29]} d6 {[%emt 0:03:32]} 5. d4 {[%emt 0:01:30]} cxd4 {[%emt 0:04:48]} 6. exd4 {[%emt 0:00:17]} g6 {[%emt 0:03:18]} 7. d5 {[%emt 0:03:28]} Nb8 {[%emt 0:00:46]} 8. Be3 {[%emt 0:06:06]} Bg7 {[%emt 0:05:03]} 9. h3 {[%emt 0:03:55]} Nbd7 {[%emt 0:11:46]} 10. Be2 {[%emt 0:02:48]} O-O {[%emt 0:04:27]} 11. O-O {[%emt 0:00:27]} Nc5 {[%emt 0:03:55]} 12. Rc1 {[%emt 0:09:48]} a5 {[%emt 0:10:49]} 13. a3 {[%emt 0:06:04]} Nfe4 {[%emt 0:06:48]} 14. Nxe4 {[%emt 0:09:22]} Nxe4 {[%emt 0:00:28]} 15. Qc2 {[%emt 0:00:11]} Nc5 {[%emt 0:02:40]} 16. b4 {[%emt 0:02:10]} axb4 {[%emt 0:02:20]} 17. axb4 {[%emt 0:00:03]} Bf5 {[%emt 0:00:24]} 18. Qd1 {[%emt 0:00:51]} Nd7 {[%emt 0:01:51]} 19. g4 {[%emt 0:08:49]} Bb2 {[%emt 0:03:48]} 20. gxf5 {[%emt 0:00:16]} Bxc1 {[%emt 0:00:09]} 21. Bxc1 {[%emt 0:01:52]} Qb6 {[%emt 0:04:58]} 22. Qd2 {[%emt 0:18:15]} Rfc8 {[%emt 0:04:48]} 23. Qh6 {[%emt 0:01:51]} Qxb4 {[%emt 0:00:55]} 24. Be3 {[%emt 0:04:02]} Nf8 {[%emt 0:01:39]} 25. f6 {[%emt 0:03:39]} exf6 {[%emt 0:02:49]} 26. Bd4 {[%emt 0:00:07]} 1-0

[Event "26th Womens ECCC 2022"]
[Site "Mayrhofen"]
[Date "2022.10.09"]
[Round "7.1"]
[White "Kashlinskaya, Alina"]
[Black "Danielian, Elina"]
[Result "1-0"]
[WhiteElo "2482"]
[BlackElo "2431"]
[Annotator "TA"]
[PlyCount "94"]
[EventDate "2022.10.03"]
[EventType "team-tourn"]
[EventCountry "AUT"]
[SourceTitle "playchess.com"]
[Source "ChessBase"]
[SourceQuality "1"]
[TimeControl "40/5400+30:1800+30"]

{[%evp 26,94,16,37,29,25,15,18,26,20,22,18,18,16,66,41,28,0,181,175,195,132,208,218,206,206,208,204,217,85,85,77,77,83,81,95,117,105,126,105,205,73,67,81,72,62,129,99,382,385,388,389,354,331,331,331,2539,2183,29975,29976,29976,29976,29970,29969,29955,5206,29984,29985,29985,29973,29964]} 1. d4 {[%emt 0:00:03]} Nf6 {[%emt 0:00:46]} 2. c4 {[%emt 0:00:07]} e6 {[%emt 0:00:06]} 3. Nc3 {[%emt 0:00:05]} Bb4 {[%emt 0:00:05]} 4. a3 {[%emt 0:00:15]} Bxc3+ {[%emt 0:00:07]} 5. bxc3 {[%emt 0:00:03]} b6 {[%emt 0:00:26]} 6. f3 {[%emt 0:01:05]} d5 {[%emt 0:02:29]} 7. cxd5 {[%emt 0:02:37]} exd5 {[%emt 0:00:03]} 8. e3 {[%emt 0:00:35]} O-O {[%emt 0:00:11]} 9. Bd3 {[%emt 0:00:11]} c5 {[%emt 0:00:22]} 10. Ne2 {[%emt 0:00:15][%cal Bg1e2,Be2g3,Bg3f5][%mdl 32]} Ba6 {[%emt 0:00:19]} 11. O-O {[%emt 0:00:34]} Bxd3 {[%emt 0:02:17]} 12. Qxd3 {[%emt 0:00:05]} Re8 {[%emt 0:00:03]} 13. Ng3 {[%emt 0:00:46]} Nc6 {[%emt 0:00:17]} 14. Bb2 {[%emt 0:00:17]} h5 {[%emt 0:01:44] E49: Nimzo-Indian: Rubinstein: 5 Bd3 d5 6 a3 Bxc3+ 7 bxc3.} 15. Rae1 {[%emt 0:00:24]} h4 {[%emt 0:01:22]} 16. Nf5 {[%emt 0:00:35]} h3 {[%emt 0:00:05] The position is equal.} 17. Ng3 {[%emt 0:00:25]} hxg2 {[%emt 0:09:10]} (17... Ne7 {is interesting.} 18. e4 Ng6 19. Bc1 dxe4 20. fxe4 hxg2 21. Kxg2 Qd7) 18. Kxg2 {[%emt 0:00:05]} cxd4 {[%emt 0:02:49]} (18... Ne7 {looks sharper.} 19. e4 Ng6 20. Bc1 dxe4 21. fxe4 Qd7) 19. cxd4 {[%emt 0:00:23] [#]} Rc8 $146 {[%emt 0:03:10]} (19... Ne7 $1 $11) ({Predecessor:} 19... Ne7 20. e4 Ng6 21. Kh1 Nf4 22. Qe3 N6h5 23. Rg1 g6 24. Nxh5 Nxh5 25. Rg5 Ng7 {½-½ (35) Lupini,S (2353)-Latronico,N (2428) ICCF email 2017}) 20. Kh1 {[%emt 0:02:02]} (20. e4 {seems wilder.} dxe4 21. fxe4 Ne5 22. Qd1) 20... Qd7 {[%emt 0:16:55]} 21. e4 $1 {[%emt 0:05:34]} dxe4 {[%emt 0:19:01]} (21... Qh3 $11) 22. fxe4 $18 {[%emt 0:00:54][%cal Of1f6]} Ne5 {[%emt 0:00:08]} 23. Qe2 {[%emt 0:09:34]} (23. Qb3 $1 $18 Ng6 24. d5) 23... Neg4 {[%emt 0:00:22]} (23... Ng6 $16 {is a better defense.}) 24. Qg2 $1 {[%emt 0:04:38]} Qa4 {[%emt 0:09:08] Strongly threatening ...Rc2.} 25. Re2 {[%emt 0:13:13] Inhibits Rc2.} Rc2 {[%emt 0:08:41]} 26. Rxc2 {[%emt 0:02:41]} Ne3 {[%emt 0:00:41]} 27. Qf2 {[%emt 0:04:49]} (27. Qg1 $1 $18 Qxc2 28. Rxf6 (28. Qxe3 Qxb2 29. Rf2 Ng4 $11) 28... gxf6 29. Nf5+ Ng2 30. Qxg2+ Qxg2+ 31. Kxg2 Rxe4 32. Kf3) 27... Qxc2 $16 {[%emt 0:01:32]} 28. Qxc2 {[%emt 0:03:22]} Nxc2 {[%emt 0:00:04] Pair of Knights!} 29. Rc1 {[%emt 0:00:37]} Ne3 {[%emt 0:05:31]} 30. d5 $1 {[%emt 0:00:44]} Nfg4 {[%emt 0:03:38] [#]} 31. Kg1 $1 {[%emt 0:00:35] Inhibits Nf2. And now h3 would win.} b5 {[%emt 0:02:05]} 32. h3 {[%emt 0:02:08]} Nc4 {[%emt 0:09:23]} (32... Nf6 $16) 33. hxg4 {[%emt 0:14:11]} (33. Rxc4 $1 $18 {is the precise move to win.} bxc4 34. hxg4) 33... Nxb2 $18 {[%emt 0:00:03][%mdl 4096] Endgame KRN-KRN} 34. Rb1 {[%emt 0:11:08]} Nc4 {[%emt 0:00:06]} 35. Rxb5 {[%emt 0:00:04]} Nxa3 {[%emt 0:00:07] [#]} (35... g6 $14) 36. Rc5 $1 $16 {[%emt 0:03:00]} g6 $2 {[%emt 0:01:24][%mdl 8192] This move loses the game for Black.} (36... Kf8 $16) 37. d6 $18 {[%emt 0:01:48]} Kf8 {[%emt 0:01:45]} 38. e5 {[%emt 0:01:35] Threatens to win with Ne4.} a6 {[%emt 0:00:12]} 39. Ne4 {[%emt 0:05:29] Black must now prevent Nf6.} Nb5 {[%emt 0:00:02]} 40. Rc4 {[%emt 0:00:22] Against Nd4. Nf6 is the strong threat.} Rd8 $2 {[%emt 0:02:26]} (40... Rxe5 $2 41. Rc8+ Re8 42. d7 $18) (40... Na3 41. Rc6 Rd8) 41. g5 {[%emt 0:30:41]} a5 {[%emt 0:03:22]} 42. Nf6 {[%emt 0:00:00]} Na7 {[%emt 0:02:09]} 43. Kf2 {[%emt 0:00:00]} Kg7 {[%emt 0:00:12]} 44. Ke3 {[%emt 0:00:00]} Kf8 {[%emt 0:02:28]} 45. Ke4 {[%emt 0:00:00]} (45. Kd4 $142 Kg7 46. Kd5 Rh8 47. d7 Rd8 48. Rc7 Kf8 49. Rxa7 Ke7 50. Kc6) 45... Nc8 {[%emt 0:10:06]} 46. Rc1 {[%emt 0:00:00]} Na7 {[%emt 0:00:31]} 47. Kd5 {[%emt 0:00:00]} Nb5 {[%emt 0:00:05] Weighted Error Value: White=0.16 (very precise) /Black=0.64} 1-0

[Event "26th Womens ECCC 2022"]
[Site "Mayrhofen"]
[Date "2022.10.09"]
[Round "7.2"]
[White "Ushenina, Anna"]
[Black "Kiolbasa, Oliwia"]
[Result "1/2-1/2"]
[ECO "D50"]
[WhiteElo "2445"]
[BlackElo "2404"]
[Annotator "TA"]
[PlyCount "65"]
[EventDate "2022.10.03"]
[EventType "team-tourn"]
[EventCountry "AUT"]
[SourceTitle "playchess.com"]
[Source "ChessBase"]
[SourceQuality "1"]
[TimeControl "40/5400+30:1800+30"]

{[%evp 9,65,18,41,25,21,0,0,0,0,0,0,-13,0,0,0,0,0,-8,-1,0,0,-27,-13,-10,-6,0,0,0,0,0,-7,0,-7,-10,-5,-5,0,0,0,0,0,0,0,0,0,0,4,0,0,0,0,0,0,0,0,-82,-82,-100]} 1. d4 {[%emt 0:00:05]} d5 {[%emt 0:00:07][%cal Bd7d5,Bd5c4][%mdl 32]} 2. c4 {[%emt 0:00:22]} e6 {[%emt 0:00:07]} 3. Nc3 {[%emt 0:00:13]} Nf6 {[%emt 0:00:09]} 4. Bg5 {[%emt 0:00:25]} dxc4 {[%emt 0:04:02]} 5. e3 {[%emt 0:00:10]} h6 {[%emt 0:03:55]} 6. Bh4 {[%emt 0:00:26] D50: Queen's Gambit Declined: Dutch-Peruvian Gambit.} c5 {[%emt 0:15:16] [#]} 7. dxc5 $146 {[%emt 0:26:01]} ({Predecessor:} 7. Nf3 Nc6 8. Bxc4 cxd4 9. exd4 Be7 10. O-O O-O 11. Re1 a6 12. Bb3 b5 13. a3 {1-0 (30) Markos,J (2526)-Likavsky,T (2498) Banska Stiavnica 2006}) 7... Qxd1+ {[%emt 0:04:01]} 8. Rxd1 {[%emt 0:00:02] The position is equal.} Bxc5 {[%emt 0:01:51]} 9. Bxc4 {[%emt 0:00:03]} a6 {[%emt 0:04:15]} 10. Nf3 {[%emt 0:08:21]} Nbd7 {[%emt 0:04:58]} (10... b5 $5 {[%cal Rb5c4]} 11. Bxf6 gxf6 $11) 11. O-O {[%emt 0:06:21]} b5 {[%emt 0:05:49]} 12. Be2 {[%emt 0:04:37]} Bb7 {[%emt 0:01:16]} 13. Rc1 {[%emt 0:03:15]} Rc8 {[%emt 0:03:27]} 14. Nd2 {[%emt 0:08:53]} O-O {[%emt 0:05:32]} 15. a3 {[%emt 0:01:14]} Bd6 {[%emt 0:03:39]} 16. Bg3 {[%emt 0:03:31]} Bxg3 {[%emt 0:04:37]} 17. hxg3 {[%emt 0:00:04]} Nc5 {[%emt 0:00:20]} 18. Rc2 {[%emt 0:12:39]} Rfd8 {[%emt 0:03:27]} 19. Rfc1 {[%emt 0:00:20]} Rxd2 {[%emt 0:08:26]} 20. Rxd2 {[%emt 0:00:02][%cal Oc3b5] [#] Threatens to win with Nxb5!} Nb3 $1 {[%emt 0:00:07][%csl LRc1,LRd2]} 21. Rcd1 {[%emt 0:00:03] Strongly threatening Rd8+.} Nxd2 {[%emt 0:00:07]} 22. Rxd2 {[%emt 0:00:01]} Ne4 {[%emt 0:00:26]} 23. Nxe4 {[%emt 0:00:53]} Bxe4 $11 {[%emt 0:00:05][%mdl 4096] Endgame KRB-KRB} 24. f3 {[%emt 0:01:43]} Bd5 {[%emt 0:02:36]} 25. e4 {[%emt 0:02:41]} Bc6 {[%emt 0:07:08]} 26. Rc2 {[%emt 0:07:07][%cal Oa3a4] With the idea a4!} Bd7 {[%emt 0:00:42]} 27. Rxc8+ {[%emt 0:02:54]} Bxc8 {[%emt 0:00:03] KB-KB} 28. Kf2 {[%emt 0:04:27]} e5 {[%emt 0:02:41]} 29. Ke3 {[%emt 0:00:03]} Kf8 {[%emt 0:01:12]} 30. Kd3 {[%emt 0:00:43]} Bd7 {[%emt 0:04:17]} 31. a4 {[%emt 0:07:40]} a5 {[%emt 0:00:13]} 32. Bd1 {[%emt 0:00:34] [#]} (32. axb5 $11 Bxb5+ 33. Kd2) 32... Ke7 $1 $17 {[%emt 0:01:31]} ({Much less strong is} 32... bxa4 33. Kc4 $11) 33. b3 {[%emt 0:00:32] Weighted Error Value: White=0.08 (flawless) /Black=0.02 (flawless)} 1/2-1/2

[Event "26th Womens ECCC 2022"]
[Site "Mayrhofen"]
[Date "2022.10.09"]
[Round "7.3"]
[White "Antolak, Julia"]
[Black "Osmak, Yuliia"]
[Result "0-1"]
[ECO "C70"]
[WhiteElo "2315"]
[BlackElo "2428"]
[Annotator "TA"]
[PlyCount "106"]
[EventDate "2022.10.03"]
[EventType "team-tourn"]
[EventCountry "AUT"]
[SourceTitle "playchess.com"]
[Source "ChessBase"]
[SourceQuality "1"]
[TimeControl "40/5400+30:1800+30"]

{[%evp 9,106,27,47,25,26,22,40,25,23,15,10,26,25,21,39,-19,-17,-51,38,32,39,-21,-23,-28,12,-36,-37,-27,-22,-26,-18,0,-11,-12,-12,-136,-120,-137,-124,-163,-146,-152,-147,-181,-160,-166,-110,-102,0,-172,-166,-160,-156,-165,-164,-159,-165,-158,-164,-150,-156,-158,-149,-166,-147,-166,-158,-222,-177,-212,-214,-224,-220,-227,-215,-227,-214,-225,-227,-329,-314,-311,-300,-494,-475,-518,-487,-564,-545,-608,-604,-580,-534,-29966,-29967,-12587,-6246,-5114,-1225]} 1. e4 {[%emt 0:00:03]} e5 {[%emt 0:00:04]} 2. Nf3 {[%emt 0:00:06]} Nc6 {[%emt 0:00:06]} 3. Bb5 {[%emt 0:00:04]} a6 {[%emt 0:00:08]} 4. Ba4 {[%emt 0:00:04]} Bc5 {[%emt 0:00:29]} 5. c3 {[%emt 0:00:37]} Nge7 {[%emt 0:00:07]} 6. d4 {[%emt 0:01:14] C70: Ruy Lopez: 3...a6 4 Ba4, Norwegian and Delayed Schliemann.} exd4 {[%emt 0:00:07]} 7. cxd4 {[%emt 0:00:06]} Bb4+ {[%emt 0:00:02]} 8. Nc3 {[%emt 0:01:01] White is slightly better.} d5 {[%emt 0:00:28]} 9. exd5 {[%emt 0:01:03]} Qxd5 {[%emt 0:15:25]} 10. O-O {[%emt 0:01:59]} Bxc3 {[%emt 0:01:04]} 11. bxc3 {[%emt 0:00:06] [#] Bb3 is the strong threat.} Bg4 $1 {[%emt 0:00:39]} 12. Bf4 {[%emt 0:18:23]} (12. Bxc6+ $14 Qxc6 13. Re1 Bxf3 14. gxf3 (14. Qxf3 Qxf3 15. gxf3 Kd7 $11)) 12... O-O-O $11 {[%emt 0:04:09] [#]} 13. Qd3 $146 {[%emt 0:02:54]} ({Predecessor:} 13. Bg3 Na5 14. Qc1 Bxf3 15. Qf4 Qc4 16. gxf3 Nd5 17. Qf5+ Kb8 18. Bc2 Nxc3 19. Bd3 {1-0 (33) Kermeen,R-Sifton,I England 1967}) 13... Ng6 {[%emt 0:06:54]} ({Black should try} 13... Bxf3 $15 14. gxf3 Ne5 15. Bxe5 Qxe5) 14. Bg3 $1 $14 {[%emt 0:07:26]} Bxf3 {[%emt 0:04:20]} 15. Qxf3 {[%emt 0:19:00]} (15. gxf3 $14 Nge7 16. Rfe1) 15... Qxf3 $11 {[%emt 0:00:50]} 16. gxf3 {[%emt 0:00:05]} h5 {[%emt 0:25:19]} 17. h3 {[%emt 0:06:29]} (17. h4 $11) 17... Nce7 $15 {[%emt 0:04:03]} 18. Rfe1 {[%emt 0:02:59]} Nd5 {[%emt 0:02:10]} 19. Bb3 {[%emt 0:01:14]} h4 {[%emt 0:01:11]} 20. Bh2 {[%emt 0:01:40]} Rh5 {[%emt 0:00:26]} 21. Kf1 {[%emt 0:06:55]} Rf5 {[%emt 0:02:51]} 22. Bxd5 {[%emt 0:00:32]} (22. c4 $11 Ndf4 23. Bc2) 22... Rdxd5 $17 {[%emt 0:00:13][%cal Bd8d5,Bd5a5,Ba5a3][%mdl 32]} 23. Re3 {[%emt 0:00:33]} Ra5 {[%emt 0:01:39]} 24. Kg2 {[%emt 0:01:58]} Ra3 {[%emt 0:05:17]} 25. c4 {[%emt 0:05:15]} Ra4 {[%emt 0:01:55]} 26. Rc1 {[%emt 0:02:51]} Rxa2 {[%emt 0:00:45]} 27. d5 {[%emt 0:00:05]} Kd7 {[%emt 0:04:44]} (27... Rb2 $19 28. Re8+ Kd7) 28. Rb3 {[%emt 0:02:12]} Kc8 {[%emt 0:02:31] Black is more active.} (28... Ne5 $17 29. c5 Rd2 30. c6+ bxc6 31. dxc6+ Ke6) 29. Re3 $1 $19 {[%emt 0:00:04] Black continues to play with concentration.} Rb2 {[%emt 0:02:13]} 30. c5 {[%emt 0:02:30]} Rg5+ {[%emt 0:03:46]} 31. Kf1 {[%emt 0:00:44]} Rxd5 {[%emt 0:00:07] Threatens to win with ...Rdd2.} 32. c6 {[%emt 0:00:07]} bxc6 {[%emt 0:02:04]} 33. Rxc6 {[%emt 0:00:09]} Rb1+ {[%emt 0:04:24]} 34. Ke2 {[%emt 0:00:55]} Rd7 {[%emt 0:01:06] Strongly threatening ...Rh1.} 35. Rec3 {[%emt 0:01:52]} Re7+ {[%emt 0:00:15]} 36. Kd3 {[%emt 0:00:20][%cal Rc6c7] [#]} Rd1+ $1 {[%emt 0:01:10]} 37. Kc2 {[%emt 0:00:19]} Rdd7 {[%emt 0:00:20]} 38. Bd6 {[%emt 0:03:16]} (38. R6c4 $17 {was worth a try.}) 38... Ne5 {[%emt 0:02:43]} ({Weaker is} 38... Rxd6 39. Rxd6 Nf4 40. Rxa6 $11) ({And not} 38... Re2+ 39. Kc1 $17) 39. Bxe5 {[%emt 0:03:36]} Rxe5 {[%emt 0:00:05]} 40. Rxa6 {[%emt 0:00:05][%mdl 4096] Endgame KRR-KRR} Re2+ {[%emt 0:00:34]} 41. Kb3 {[%emt 0:30:12]} Rxf2 {[%emt 0:30:37]} 42. Ra8+ {[%emt 0:01:10]} Kb7 {[%emt 0:00:47]} 43. Ra4 {[%emt 0:00:05]} g5 {[%emt 0:01:05]} 44. Rg4 {[%emt 0:01:25]} (44. Rb4+ $142 Kc8 45. Rbc4) 44... f6 {[%emt 0:00:00]} 45. Rb4+ {[%emt 0:00:00]} Kc8 {[%emt 0:00:00]} 46. Rb5 $2 {[%emt 0:00:00]} (46. Re4) 46... Kd8 {[%emt 0:00:00]} 47. Rb8+ {[%emt 0:00:00]} Ke7 {[%emt 0:00:00]} 48. Rc8 {[%emt 0:00:00]} Ke6 {[%emt 0:00:00]} 49. Rf8 {[%emt 0:00:00]} Rd6 {[%emt 0:00:00]} 50. Rc8 {[%emt 0:00:00]} c6 {[%emt 0:00:00]} 51. R8xc6 {[%emt 0:00:00]} Rxc6 {[%emt 0:00:00]} 52. Rxc6+ {[%emt 0:00:00]} Kf5 {[%emt 0:00:00]} 53. Rc3 {[%emt 0:00:00]} Ke5 {Weighted Error Value: White=0.38/Black=0.13 (very precise)} (53... Kf4 $142 54. Rc6 Rxf3+ 55. Kc2 Rxh3 56. Rxf6+ Kg3) 0-1

[Event "26th Womens ECCC 2022"]
[Site "Mayrhofen"]
[Date "2022.10.09"]
[Round "7.4"]
[White "Maltsevskaya, Aleksandra"]
[Black "Cyfka, Karina"]
[Result "*"]
[WhiteElo "2389"]
[BlackElo "2347"]
[Annotator "TA"]
[PlyCount "85"]
[EventDate "2022.10.03"]
[EventType "team-tourn"]
[EventCountry "AUT"]
[SourceTitle "playchess.com"]
[Source "ChessBase"]
[SourceQuality "1"]
[TimeControl "40/5400+30:1800+30"]

{[%evp 10,85,17,10,22,10,24,-22,9,11,18,-25,-31,-30,-11,-16,-12,-20,0,0,20,0,0,0,0,0,0,0,7,0,0,0,0,0,0,0,19,-5,0,0,36,29,39,0,27,28,51,29,43,10,8,16,36,29,50,45,51,11,20,0,0,0,14,0,0,0,0,0,0,0,0,0,0,0,0,0,0,0]} 1. e4 {[%emt 0:00:03]} e5 {[%emt 0:00:05]} 2. Nc3 {[%emt 0:00:09]} Nf6 {[%emt 0:00:13]} 3. Bc4 {[%emt 0:00:08]} Nc6 {[%emt 0:00:49]} 4. d3 {[%emt 0:00:08]} Na5 {[%emt 0:06:46]} 5. Bb3 {[%emt 0:00:13]} Nxb3 {[%emt 0:02:01]} 6. axb3 {[%emt 0:03:24]} Bc5 {[%emt 0:09:19] C28: Vienna Game: 2...Nf6 3 Bc4 Nc6.} 7. f4 {[%emt 0:00:08]} d6 {[%emt 0:01:43] [#] Threatens to win with ...Ng4.} 8. f5 {[%emt 0:00:12]} (8. h3 {feels stronger.}) 8... a6 {[%emt 0:02:28]} 9. Bg5 {[%emt 0:18:10]} c6 {[%emt 0:07:02] [#] Inhibits Nd5.} 10. Nge2 $146 {[%emt 0:00:36]} ({Predecessor:} 10. Qf3 b5 11. Nge2 Bb7 12. Ng3 d5 13. Nh5 Rg8 14. Ne2 Be7 15. Bxf6 Bxf6 16. O-O {½-½ (55) Hutchinson,P (2228)-Schenk Papke,A (2057) Calvia 2009}) 10... h6 {[%emt 0:04:36]} 11. Bh4 {[%emt 0:01:06]} g5 {[%emt 0:05:28]} 12. fxg6 {[%emt 0:18:42]} fxg6 {[%emt 0:00:09]} 13. d4 {[%emt 0:00:03]} Bb6 {[%emt 0:06:39]} 14. Qd3 {[%emt 0:02:30]} g5 {[%emt 0:02:01]} 15. Bg3 {[%emt 0:00:22]} Qe7 {[%emt 0:01:33]} 16. O-O-O {[%emt 0:00:33]} Bg4 {[%emt 0:02:42]} 17. h3 {[%emt 0:04:09] [#] And now dxe5 would win.} Bxe2 {[%emt 0:06:20]} 18. Nxe2 {[%emt 0:00:07]} O-O-O {[%emt 0:00:49]} 19. dxe5 {[%emt 0:11:51]} dxe5 {[%emt 0:00:48]} 20. Qf3 {[%emt 0:00:05]} Rhf8 {[%emt 0:05:30]} 21. Rxd8+ {[%emt 0:00:51]} Bxd8 {[%emt 0:00:21]} 22. Rd1 {[%emt 0:00:32]} Bc7 {[%emt 0:00:43]} 23. Bh2 {[%emt 0:03:32][%cal Bg3h2,Bh2g1,Bg1f2,Bf2e1,Be1c3][%mdl 32]} Kb8 {[%emt 0:05:13][%cal Of6d5]} 24. Ng3 {[%emt 0:00:06]} Qb4 {[%emt 0:02:13][%cal Oh6h5]} (24... h5 $5 {[%cal Rf6g4]}) 25. Bg1 {[%emt 0:05:06]} b6 {[%emt 0:06:00]} 26. Qe3 {[%emt 0:02:35]} a5 {[%emt 0:03:34]} (26... h5 $5 {[%cal Rh5h4]}) 27. Bf2 {[%emt 0:04:39]} a4 {[%emt 0:01:35]} 28. Be1 {[%emt 0:10:41]} (28. Rd3 $5 {[%cal Rb3a4]}) 28... Qb5 {[%emt 0:00:07]} 29. bxa4 {[%emt 0:00:06]} Qxa4 {[%emt 0:00:07] aiming for ...Qa1+.} 30. Kb1 {[%emt 0:00:04] Inhibits Qa1+.} Kb7 {[%emt 0:03:37]} 31. b3 {[%emt 0:00:06]} Qa3 {[%emt 0:01:42]} 32. Bc3 {[%emt 0:00:06]} (32. Qc1 Qxc1+ 33. Kxc1 h5 $17) 32... b5 {[%emt 0:04:35]} 33. Nf5 {[%emt 0:02:44]} (33. Bb2 $5 {[%cal Rb2a3]} Qb4 34. Rf1 $14) 33... h5 {[%emt 0:04:47] The position is equal.} 34. Ng7 {[%emt 0:03:23] Black must now prevent Ne6.} Qe7 {[%emt 0:01:17] Prevents Ne6.} (34... Ra8 35. Ne6 Bb6 36. Qf3 (36. Qxg5 Qa2+ 37. Kc1 Rg8 $11) 36... Qa2+ 37. Kc1 Qa3+ 38. Kb1 (38. Bb2 Qe7 $14) 38... Qa2+ 39. Kc1 Qa3+ 40. Bb2 $14) 35. Nf5 {[%emt 0:00:27]} (35. Qxg5 Rg8 36. Nf5 Rxg5 $17) 35... Qa3 {[%emt 0:00:17]} 36. g4 {[%emt 0:02:57]} hxg4 {[%emt 0:00:57]} ({Don't take} 36... Ra8 37. gxh5 Qa7 38. Nd6+ (38. Qxa7+ Kxa7 39. h6 Rh8 $18) 38... Bxd6 39. Qxa7+ Kxa7 40. Rxd6 Nxh5 41. Rxc6 $16 (41. Bxe5 Re8 $16)) 37. hxg4 {[%emt 0:00:04]} Qa7 {[%emt 0:01:28]} 38. Qe2 {[%emt 0:02:50]} Qc5 {[%emt 0:00:26]} 39. Qe1 {[%emt 0:04:08] Strongly threatening Bb4.} Ra8 {[%emt 0:00:32][%cal Of6e4]} (39... Nxe4 $2 40. Bb4 Rd8 41. Rxd8 Nc3+ 42. Bxc3 $18) 40. Bb4 {[%emt 0:02:13]} Qa7 {[%emt 0:00:06][%csl Ga8][%cal Ra7a1]} 41. Bc3 {[%emt 0:30:04] Inhibits Qa1+.} Qc5 {[%emt 0:19:46][%cal Of6e4]} 42. Bb4 {[%emt 0:00:00]} Qa7 {[%emt 0:00:42][%csl Ga8][%cal Ra7a1]} 43. Bc3 $1 {[%emt 0:00:00] Against Qa1+.  Weighted Error Value: White=0.09 (flawless) /Black=0.08 (flawless)} *